fUST/lending_fUST_20240729
["ID","MTS","AMOUNT","RATE_DAILY","PERIOD"]
[333564103,1722249041358,-277.13700097,0.00016532,2]
[333564104,1722249041368,-698.95,0.00016643,2]
[333564105,1722249041377,-500.0,0.00016724,2]
[333564106,1722249041387,-655.46,0.00016724,2]
[333564107,1722249041397,-500.0,0.00016724,2]
[333564108,1722249041406,-500.0,0.00016725,2]
[333564109,1722249041416,-500.0,0.00016725,2]
[333564110,1722249041426,-951.13,0.00016725,2]
[333564111,1722249041435,-3696.31,0.00016725,2]
[333564112,1722249041445,-698.95,0.00016917,2]
[333564113,1722249041456,-400.0,0.0001695,2]
[333564114,1722249041468,-500.0,0.00016998,2]
[333564115,1722249041480,-655.46,0.00016998,2]
[333564116,1722249041490,-500.0,0.00016998,2]
[333564117,1722249041499,-500.0,0.00016999,2]
[333564118,1722249041510,-409.10509523,0.00016999,2]
[333564119,1722249041520,-951.13,0.00016999,2]
[333564120,1722249041529,-3696.31,0.00016999,2]
[333564121,1722249041538,-150.112233,0.00017,2]
[333564122,1722249041547,-154.62117811,0.00017019,2]
[333564123,1722249041560,-1039.23813624,0.00017133,2]
[333564124,1722249041570,-698.95,0.00017191,2]
[333564125,1722249041580,-150.112233,0.000172,2]
[333564126,1722249041591,-500.0,0.00017264,2]
[333564127,1722249041602,-500.0,0.00017272,2]
[333564128,1722249041613,-655.46,0.00017272,2]
[333564129,1722249041624,-500.0,0.00017272,2]
[333564130,1722249041633,-500.0,0.00017273,2]
[333564131,1722249041643,-951.13,0.00017273,2]
[333564132,1722249041653,-3696.31,0.00017273,2]
[333564133,1722249041664,-559.65,0.00017327,2]
[333564134,1722249041673,-500.0,0.00017401,2]
[333564135,1722249041683,-698.95,0.00017465,2]
[333564136,1722249041693,-500.0,0.00017546,2]
[333564137,1722249041702,-655.46,0.00017546,2]
[333564138,1722249041715,-500.0,0.00017546,2]
[333564139,1722249041726,-500.0,0.00017547,2]
[333564140,1722249041737,-951.13,0.00017547,2]
[333564141,1722249041748,-3696.31,0.00017547,2]
[333564142,1722249041759,-150.112233,0.000177,2]
[333564143,1722249041769,-698.95,0.00017739,2]
[333564144,1722249041779,-150.366448,0.00017762,2]
[333564145,1722249041788,-168.810698,0.00017762,2]
[333564146,1722249041797,-464.77973053,0.0001782,2]
[333564147,1722249041807,-655.46,0.0001782,2]
[333564148,1722249041817,-500.0,0.0001782,2]
[333564149,1722249041826,-500.0,0.00017821,2]
[333564150,1722249041836,-951.13,0.00017821,2]
[333564151,1722249041846,-3696.31,0.00017821,2]
[333564152,1722249041856,-500.0,0.00017822,2]
[333564153,1722249041866,-500.0,0.00017822,2]
[333564154,1722249041875,-283.71249105,0.00017822,2]
[333564155,1722249041885,-1407.0,0.00017988,2]
[333564156,1722249041896,-216.79398217,0.00018,2]
[333564157,1722249041906,-698.95,0.00018013,2]
[333564158,1722249041918,-655.46,0.00018094,2]
[333564159,1722249041929,-500.0,0.00018094,2]
[333564160,1722249041940,-500.0,0.00018095,2]
[333564161,1722249041953,-951.13,0.00018095,2]
[333564162,1722249041964,-3696.31,0.00018095,2]
[333564163,1722249041973,-168.810698,0.00018206,2]
[333564164,1722249041984,-698.95,0.00018287,2]
[333564165,1722249041995,-150.112233,0.000183,2]
[333564166,1722249042007,-655.46,0.00018368,2]
[333564167,1722249042017,-589.48752224,0.00018368,2]
[333564168,1722249042027,-500.0,0.00018369,2]
[333564169,1722249042037,-951.13,0.00018369,2]
[333564170,1722249042046,-3696.31,0.00018369,2]
[333564171,1722249042056,-698.95,0.00018561,2]
[333564172,1722249042066,-1381.01587183,0.00018564,2]
[333564173,1722249042076,-655.46,0.00018642,2]
[333564174,1722249042085,-500.0,0.00018643,2]
[333564175,1722249042095,-951.13,0.00018643,2]
[333564176,1722249042105,-3696.31,0.00018643,2]
[333564177,1722249042114,-168.810698,0.0001865,2]
[333564178,1722249042124,-1039.23813624,0.00018667,2]
[333564179,1722249042134,-559.65,0.00018697,2]
[333564180,1722249042143,-559.65,0.00018697,2]
[333564181,1722249042153,-559.65,0.00018697,2]
[333564182,1722249042163,-559.65,0.00018697,2]
[333564183,1722249042172,-559.86326479,0.00018697,2]
[333564184,1722249042182,-600.0,0.00018727,2]
[333564185,1722249042192,-698.95,0.00018835,2]
[333564186,1722249042202,-150.112233,0.000189,2]
[333564187,1722249042213,-655.46,0.00018916,2]
[333564188,1722249042223,-500.0,0.00018917,2]
[333564189,1722249042233,-951.13,0.00018917,2]
[333564190,1722249042243,-3696.31,0.00018917,2]
[333564191,1722249042253,-156.04710466,0.00019,2]
[333564192,1722249042263,-150.112233,0.00019,2]
[333564193,1722249042273,-250.0,0.00019041,2]
[333564194,1722249042283,-698.95,0.00019109,2]
[333564195,1722249042293,-500.0,0.00019178,2]
[333564196,1722249042303,-500.0,0.00019178,2]
[333564197,1722249042313,-500.0,0.00019178,2]
[333564198,1722249042323,-500.0,0.00019178,2]
[333564199,1722249042333,-500.0,0.00019178,2]
[333564200,1722249042343,-500.0,0.00019178,2]
[333564201,1722249042352,-279.130776,0.00019178,2]
[333564202,1722249042362,-655.46,0.0001919,2]
[333564203,1722249042371,-500.0,0.00019191,2]
[333564204,1722249042381,-951.13,0.00019191,2]
[333564205,1722249042390,-3696.31,0.00019191,2]
[333564206,1722249042403,-603.5628677,0.00019261,2]
[333564207,1722249042413,-698.95,0.00019383,2]
[333564208,1722249042426,-150.112233,0.000194,2]
[333564209,1722249042436,-655.46,0.00019464,2]
[333564210,1722249042446,-500.0,0.00019465,2]
[333564211,1722249042457,-951.13,0.00019465,2]
[333564212,1722249042471,-3696.31,0.00019465,2]
[333564213,1722249042481,-698.95,0.00019657,2]
[333564214,1722249042491,-655.46,0.00019738,2]
[333564215,1722249042500,-500.0,0.00019739,2]
[333564216,1722249042511,-951.13,0.00019739,2]
[333564217,1722249042522,-3696.31,0.00019739,2]
[333564218,1722249042531,-698.95,0.00019931,2]
[333564219,1722249042542,-248.23618916,0.0002,2]
[333564220,1722249042552,-156.30380148,0.0002,2]
[333564221,1722249042565,-435.0,0.0002,2]
[333564222,1722249042577,-1015.30682734,0.0002,2]
[333564223,1722249042587,-222.07416662,0.0002,2]
[333564224,1722249042597,-307.11244283,0.0002,2]
[333564225,1722249042607,-294.0516063,0.0002,2]
[333564226,1722249042619,-154.62117811,0.0002,2]
[333564227,1722249042629,-520.0,0.0002,2]
[333564228,1722249042638,-460.03003471,0.0002,2]
[333564229,1722249042650,-204.43979736,0.0002,2]
[333564230,1722249042661,-152.66,0.0002,31]
[333564232,1722249042672,-152.66,0.0002,31]
[333564233,1722249042683,-152.66,0.0002,31]
[333564234,1722249042692,-152.66,0.0002,31]
[333564237,1722249042772,-152.66,0.0002,31]
[333564239,1722249042790,-152.66,0.0002,31]
[333564241,1722249042799,-152.66,0.0002,31]
[333564243,1722249042809,-152.66,0.0002,31]
[333564244,1722249042820,-152.66,0.0002,31]
[333564245,1722249042830,-152.66,0.0002,31]
[333564246,1722249042839,-152.66,0.0002,31]
[333564247,1722249042849,-152.66,0.0002,31]
[333564248,1722249042859,-152.66,0.0002,31]
[333564249,1722249042868,-152.66,0.0002,31]
[333564250,1722249042878,-152.66,0.0002,31]
[333564251,1722249042888,-152.66,0.0002,31]
[333564252,1722249042900,-152.66,0.0002,31]
[333564253,1722249042911,-152.66,0.0002,31]
[333564254,1722249042921,-152.66,0.0002,31]
[333564255,1722249042930,-302.30477157,0.0002,2]
[333564256,1722249042940,-302.30477158,0.0002,2]
[333564257,1722249042949,-655.46,0.00020012,2]
[333564258,1722249042958,-500.0,0.00020013,2]
[333564259,1722249042967,-951.13,0.00020013,2]
[333564260,1722249042977,-3696.31,0.00020013,2]
[333564261,1722249042990,-150.112233,0.000201,5]
[333564262,1722249043000,-1039.23813624,0.000202,2]
[333564263,1722249043010,-302.30477158,0.000202,2]
[333564264,1722249043019,-698.95,0.00020205,2]
[333564265,1722249043029,-655.46,0.00020286,2]
[333564266,1722249043039,-379.24073197,0.00020287,2]
[333564267,1722249043059,-951.13,0.00020287,2]
[333564268,1722249043070,-3696.31,0.00020287,2]
[333564269,1722249043081,-302.30477158,0.000204,2]
[333564270,1722249043091,-698.95,0.00020479,2]
[333564271,1722249043101,-150.112233,0.000205,5]
[333564272,1722249043111,-200.0,0.000205,2]
[333564273,1722249043122,-2895.90316603,0.00020541,30]
[333564274,1722249043132,-403.314564,0.00020548,2]
[333564275,1722249043142,-655.46,0.0002056,2]
[333564276,1722249043153,-951.13,0.00020561,2]
[333564277,1722249043164,-3696.31,0.00020561,2]
[333564278,1722249043175,-302.30477158,0.000206,2]
[333564279,1722249043185,-1381.01587183,0.00020631,2]
[333564280,1722249043195,-800.0,0.00020699,2]
[333564281,1722249043205,-322.438505,0.00020707,2]
[333564282,1722249043215,-698.95,0.00020753,2]
[333564283,1722249043225,-302.30477158,0.000208,2]
[333564284,1722249043236,-655.46,0.00020834,2]
[333564285,1722249043245,-951.13,0.00020835,2]
[333564286,1722249043256,-3696.31,0.00020835,2]
[333564287,1722249043266,-1000.0,0.00021,21]
[333564288,1722249043277,-667.580387,0.00021,2]
[333564289,1722249043287,-150.112233,0.00021,4]
[333564290,1722249043297,-453.45715737,0.00021,4]
[333564291,1722249043307,-698.95,0.00021027,2]
[333564292,1722249043318,-655.46,0.00021108,2]
[333564293,1722249043328,-951.13,0.00021109,2]
[333564294,1722249043338,-3696.31,0.00021109,2]
[333564295,1722249043348,-1230.52829539,0.000212,30]
[333564296,1722249043359,-276.33454075,0.000212,4]
[333564297,1722249043369,-150.112233,0.000213,4]
[333564298,1722249043379,-699.1492,0.00021301,2]
[333564299,1722249043389,-655.67347859,0.00021382,2]
[333564300,1722249043400,-951.23945052,0.00021383,2]
[333564301,1722249043410,-3696.49507093,0.00021383,2]
[333564302,1722249043419,-155.99033626,0.00021588,2]
[333564303,1722249043429,-150.112233,0.000216,4]
[333564304,1722249043439,-152.66,0.000216,31]
[333564305,1722249043449,-152.66,0.000216,31]
[333564306,1722249043462,-152.66,0.000216,31]
[333564307,1722249043471,-152.66,0.000216,31]
[333564309,1722249043484,-152.66,0.000216,31]
[333564310,1722249043493,-152.66,0.000216,31]
[333564311,1722249043503,-152.66,0.000216,31]
[333564312,1722249043513,-152.66,0.000216,31]
[333564313,1722249043523,-152.66,0.000216,31]
[333564314,1722249043532,-152.66,0.000216,31]
[333564315,1722249043542,-152.66,0.000216,31]
[333564316,1722249043553,-152.66,0.000216,31]
[333564317,1722249043563,-152.66,0.000216,31]
[333564318,1722249043572,-152.66,0.000216,31]
[333564319,1722249043582,-152.66,0.000216,31]
[333564320,1722249043592,-152.66,0.000216,31]
[333564322,1722249043601,-42327.47361396,0.00021642,2]
[333564324,1722249043611,-1039.23813624,0.00021733,2]
[333564326,1722249043621,-155.99033626,0.00021748,2]
[333564328,1722249043632,-500.0,0.00021918,5]
[333564330,1722249043641,-500.0,0.00021918,5]
[333564332,1722249043652,-500.0,0.00021918,5]
[333564334,1722249043662,-500.0,0.00021918,5]
[333564336,1722249043672,-500.0,0.00021918,5]
[333564338,1722249043681,-155.99033626,0.00021996,2]
[333564340,1722249043691,-465.68758687,0.00022,30]
[333564342,1722249043700,-308.1195623,0.00022,2]
[333564344,1722249043710,-12057.05,0.00022,7]
[333564346,1722249043720,-180.0,0.00022,2]
[333564347,1722249043730,-1691.68908035,0.0002217,2]
[333564349,1722249043739,-180.0,0.00022192,2]
[333564351,1722249043748,-150.112233,0.000226,5]
[333564353,1722249043759,-160.0,0.00022621,3]
[333564355,1722249043769,-1381.01587183,0.00022697,2]
[333564356,1722249043778,-150.112233,0.000227,3]
[333564358,1722249043788,-155.99033626,0.00022797,2]
[333564360,1722249043798,-1000.0,0.0002281,2]
[333564362,1722249043807,-3188.4744,0.00023,2]
[333564364,1722249043818,-1000.0,0.00023,23]
[333564366,1722249043828,-150.112233,0.00023,3]
[333564368,1722249043837,-180.0,0.00023014,2]
[333564370,1722249043847,-160.0,0.00023182,4]
[333564372,1722249043857,-1039.23813624,0.00023267,2]
[333564374,1722249043866,-155.99033631,0.00023272,2]
[333564376,1722249043876,-823.48181136,0.000233,2]
[333564378,1722249043888,-8024.08156372,0.000233,2]
[333564380,1722249043901,-6889.943266,0.000233,2]
[333564382,1722249043911,-152.66,0.000233,31]
[333564384,1722249043921,-152.66,0.000233,31]
[333564385,1722249043931,-152.66,0.000233,31]
[333564387,1722249043940,-152.66,0.000233,31]
[333564389,1722249043950,-152.66,0.000233,31]
[333564391,1722249043960,-152.66,0.000233,31]
[333564393,1722249043970,-152.66,0.000233,31]
[333564395,1722249043979,-152.66,0.000233,31]
[333564397,1722249043989,-152.66,0.000233,31]
[333564399,1722249043999,-152.66,0.000233,31]
[333564401,1722249044009,-152.66,0.000233,31]
[333564403,1722249044019,-152.66,0.000233,31]
[333564405,1722249044029,-152.66,0.000233,31]
[333564407,1722249044038,-152.66,0.000233,31]
[333564409,1722249044048,-152.66,0.000233,31]
[333564411,1722249044058,-152.66,0.000233,31]
[333564413,1722249044068,-154.60575532,0.0002335,15]
[333564416,1722249044078,-160.0,0.00023743,5]
[333564418,1722249044088,-150.112233,0.000238,5]
[333564420,1722249044099,-150.112233,0.000238,2]
[333564422,1722249044108,-4341.93675127,0.00024,30]
[333564424,1722249044119,-183.0,0.00024164,2]
[333564426,1722249044129,-12057.05,0.000242,7]
[333564428,1722249044139,-160.0,0.00024304,6]
[333564430,1722249044149,-500.0,0.00024658,2]
[333564432,1722249044158,-200.0,0.00024658,15]
[333564434,1722249044169,-380.0,0.00024658,2]
[333564436,1722249044179,-296.7754684,0.00024712,2]
[333564438,1722249044189,-1381.01587183,0.00024764,2]
[333564440,1722249044200,-1039.23813624,0.000248,2]
[333564442,1722249044209,-160.0,0.00024865,7]
[333564444,1722249044222,-160.61365924,0.00024865,5]
[333564446,1722249044232,-150.112233,0.000249,4]
[333564448,1722249044242,-152.66,0.000249,31]
[333564450,1722249044252,-152.66,0.000249,31]
[333564452,1722249044262,-152.66,0.000249,31]
[333564454,1722249044271,-152.66,0.000249,31]
[333564457,1722249044282,-152.66,0.000249,31]
[333564459,1722249044291,-152.66,0.000249,31]
[333564461,1722249044301,-152.66,0.000249,31]
[333564462,1722249044311,-152.66,0.000249,31]
[333564464,1722249044321,-152.66,0.000249,31]
[333564466,1722249044330,-152.66,0.000249,31]
[333564468,1722249044341,-152.66,0.000249,31]
[333564470,1722249044351,-152.66,0.000249,31]
[333564473,1722249044361,-152.66,0.000249,31]
[333564475,1722249044371,-152.66,0.000249,31]
[333564477,1722249044381,-152.66,0.000249,31]
[333564479,1722249044390,-152.66,0.000249,31]
[333564480,1722249044401,-21649.28559664,0.00025,30]
[333564482,1722249044411,-772.14461261,0.00025,2]
[333564484,1722249044420,-154.65203293,0.00025,2]
[333564486,1722249044430,-6372.156096,0.00025,2]
[333564488,1722249044440,-154.65203293,0.00025,2]
[333564490,1722249044450,-363.71668181,0.00025,2]
[333564492,1722249044459,-155.55592248,0.00025,2]
[333564494,1722249044471,-1000.0,0.00025,25]
[333564496,1722249044484,-279.26543992,0.00025,7]
[333564498,1722249044494,-150.112233,0.00025,4]
[333564500,1722249044504,-1200.0,0.0002503,2]
[333564503,1722249044515,-180.0,0.00025775,2]
[333564505,1722249044527,-500.0,0.00026,120]
[333564507,1722249044539,-610.35143664,0.00026,120]
[333564509,1722249044549,-1039.23813624,0.00026333,2]
[333564511,1722249044561,-279.130776,0.00026388,2]
[333564513,1722249044571,-152.66,0.000266,31]
[333564515,1722249044581,-152.66,0.000266,31]
[333564517,1722249044591,-152.66,0.000266,31]
[333564519,1722249044601,-152.66,0.000266,31]
[333564521,1722249044611,-152.66,0.000266,31]
[333564523,1722249044621,-152.66,0.000266,31]
[333564526,1722249044632,-152.66,0.000266,31]
[333564528,1722249044643,-152.66,0.000266,31]
[333564530,1722249044654,-152.66,0.000266,31]
[333564532,1722249044666,-152.66,0.000266,31]
[333564534,1722249044676,-152.66,0.000266,31]
[333564536,1722249044685,-152.66,0.000266,31]
[333564538,1722249044695,-152.66,0.000266,31]
[333564540,1722249044705,-152.66,0.000266,31]
[333564542,1722249044715,-152.66,0.000266,31]
[333564544,1722249044726,-152.66,0.000266,31]
[333564546,1722249044735,-32570.58467574,0.000268,2]
[333564548,1722249044745,-1381.01587183,0.0002683,2]
[333564550,1722249044756,-153.95299031,0.0002689,2]
[333564552,1722249044766,-1000.0,0.00027,27]
[333564554,1722249044776,-322.438505,0.00027167,2]
[333564557,1722249044786,-590.7412604,0.00027178,2]
[333564559,1722249044796,-404.4979903,0.00027178,2]
[333564561,1722249044806,-306.6875328,0.00027178,2]
[333564563,1722249044817,-12057.05,0.000272,7]
[333564565,1722249044827,-1400.0,0.00027341,2]
[333564567,1722249044836,-180.0,0.00027386,2]
[333564569,1722249044846,-500.0,0.00027397,2]
[333564571,1722249044856,-500.0,0.00027397,2]
[333564573,1722249044866,-500.0,0.00027397,2]
[333564575,1722249044876,-500.0,0.00027397,2]
[333564577,1722249044885,-500.0,0.00027397,2]
[333564579,1722249044895,-500.0,0.00027397,2]
[333564581,1722249044906,-500.0,0.00027397,2]
[333564592,1722249045004,-500.0,0.00027397,2]
[333564594,1722249045014,-500.0,0.00027397,2]
[333564596,1722249045024,-500.0,0.00027397,2]
[333564598,1722249045034,-500.0,0.00027397,2]
[333564600,1722249045043,-500.0,0.00027397,2]
[333564602,1722249045053,-500.0,0.00027397,2]
[333564604,1722249045062,-235.47488004,0.00027397,2]
[333564606,1722249045072,-500.0,0.00027397,2]
[333564608,1722249045082,-500.0,0.00027397,2]
[333564610,1722249045092,-500.0,0.00027397,2]
[333564612,1722249045101,-500.0,0.00027397,2]
[333564614,1722249045111,-500.0,0.00027397,2]
[333564616,1722249045121,-500.0,0.00027397,2]
[333564618,1722249045130,-500.0,0.00027397,2]
[333564620,1722249045139,-500.0,0.00027397,2]
[333564622,1722249045149,-500.0,0.00027397,2]
[333564624,1722249045159,-6250.0,0.00027397,120]
[333564626,1722249045168,-336.94168875,0.000274,2]
[333564628,1722249045178,-5692.94,0.000275,120]
[333564630,1722249045187,-180.0,0.00027616,2]
[333564632,1722249045197,-1039.23813624,0.00027867,2]
[333564634,1722249045206,-210803.85063005,0.0002788,2]
[333564673,1722249045565,-21792.97752837,0.0002788,2]
[333564710,1722249045919,-33879.28777727,0.00021642,2]
[333564712,1722249045929,-1095.26582146,0.00027397,2]
[333564714,1722249045939,-1024.38522789,0.00027397,2]
[333564731,1722249046091,-156.85628731,0.00021048,2]
[333564734,1722249046104,-70.88059357,0.00027397,2]
[333564737,1722249046116,-1095.26582146,0.00027397,2]
[333564740,1722249046128,-526.62917623,0.00027397,2]
[333564745,1722249046176,-160.87359623,0.00027397,2]
[333564751,1722249046226,-407.763049,0.00027397,2]
[333564754,1722249046239,-1095.26582146,0.00027397,2]
[333564756,1722249046251,-1095.26582146,0.00027397,2]
[333564758,1722249046263,-1095.26582146,0.00027397,2]
[333564761,1722249046274,-1095.26582146,0.00027397,2]
[333564763,1722249046286,-1095.26582146,0.00027397,2]
[333564765,1722249046297,-1047.219059,0.00027397,2]
[333564991,1722249092030,177.653134,0.00012986,2]
[333564994,1722249144213,246.47125079,0.00012986,2]
[333564995,1722249166364,-500.0,0.00015047,7]
[333564996,1722249166388,-312.46,0.00015047,7]
[333564997,1722249191567,-191.49221591,0.00012974,2]
[333564998,1722249191591,-300.0,0.00012985,2]
[333564999,1722249191616,-300.0,0.00012985,2]
[333565000,1722249191639,-5329.50778409,0.00012986,2]
[333565001,1722249376000,154.71377951,9.999e-05,2]
[333565004,1722249430785,156.85628731,9.999e-05,2]
[333565008,1722249516291,156.85628731,9.999e-05,2]
[333565009,1722249554817,154.71377951,9.999e-05,2]
[333565010,1722249561121,214.11874215,9.999e-05,2]
[333565011,1722249567981,332.52574791,9.999e-05,2]
[333565012,1722249619131,196.0,9.999e-05,2]
[333565013,1722249624294,156.85628731,9.999e-05,2]
[333565014,1722249624748,8883.11472286,9.999e-05,2]
[333565015,1722249625782,297.07388953,9.999e-05,2]
[333565016,1722249627978,154.87856281,0.0001,2]
[333565017,1722249628017,237.00940818,9.999e-05,2]
[333565018,1722249631483,658.6338625,9.999e-05,2]
[333565019,1722249639289,156.85628731,9.999e-05,2]
[333565020,1722249643333,617.1352614,9.999e-05,2]
[333565021,1722249644252,319.40039305,9.999e-05,2]
[333565022,1722249644857,240.67923491,9.999e-05,2]
[333565023,1722249656192,848.96464521,9.999e-05,2]
[333565024,1722249665736,180.13853817,9.999e-05,2]
[333565025,1722249672530,531.09299059,9.999e-05,2]
[333565026,1722249672715,197.36110812,9.999e-05,2]
[333565027,1722249714546,727.15120451,9.999e-05,2]
[333565028,1722249749307,156.85628731,9.999e-05,2]
[333565029,1722249843316,156.85628731,9.999e-05,2]
[333565030,1722249927317,289.39057253,9.999e-05,2]
[333565031,1722249990033,459.41811663,0.0001,2]
[333565032,1722250001899,942.12512916,9.999e-05,2]
[333565033,1722250008157,-156.54612966,0.00010959,2]
[333565034,1722250028092,-63.59387034,0.00010959,2]
[333565035,1722250028113,-183.45,0.00010959,2]
[333565036,1722250028141,-152.87,0.00010959,2]
[333565037,1722250028164,-764.38,0.00010959,2]
[333565038,1722250028186,-166.325447,0.00011546,2]
[333565039,1722250028208,-169.2998162,0.00012114,2]
[333565040,1722250028229,-166.325447,0.00012333,2]
[333565041,1722250028251,-124.43746859,0.000129,2]
[333565042,1722250042092,-207.83899162,0.0001212,2]
[333565043,1722250042116,-101.10458798,0.0001212,2]
[333565050,1722250084035,459.41811663,0.0001,2]
[333565051,1722250090154,500.0,0.00021222,60]
[333565052,1722250106789,941.50620836,9.999e-05,2]
[333565057,1722250146079,-300.0,0.00012019,2]
[333565058,1722250146101,-24900.0,0.0001202,2]
[333565059,1722250146122,-14244.3347948,0.00012121,2]
[333565060,1722250147170,-26797.60322227,0.00012121,2]
[333565061,1722250151283,-64516.99394201,0.00012121,2]
[333565062,1722250151306,-459.41811663,0.00012121,2]
[333565063,1722250151343,-4080.73192671,0.000129,2]
[333565064,1722250151371,-1381.01587187,0.000129,2]
[333565065,1722250151394,-158.342719,0.00012986,2]
[333565066,1722250151416,-1000.0,0.00013,2]
[333565067,1722250151440,-150.112233,0.00013,2]
[333565068,1722250151465,-166.325447,0.0001312,2]
[333565069,1722250155298,941.97058039,0.00012121,2]
[333565070,1722250161124,-4205.1693953,0.00013275,2]
[333565071,1722250161147,-4205.1693953,0.0001365,2]
[333565072,1722250161170,-500.0,0.00013698,2]
[333565073,1722250161191,-255.14315066,0.00013698,2]
[333565074,1722250161215,-3696.31,0.00013698,2]
[333565075,1722250161237,-500.0,0.00013698,2]
[333565076,1722250161260,-500.0,0.00013698,2]
[333565077,1722250161284,-500.0,0.00013698,2]
[333565078,1722250161310,-500.0,0.00013698,2]
[333565079,1722250161334,-500.0,0.00013698,2]
[333565080,1722250161358,-595.14,0.00013698,2]
[333565081,1722250161384,-500.0,0.00013698,2]
[333565082,1722250161405,-559.65,0.00013698,2]
[333565083,1722250161427,-559.65,0.00013698,2]
[333565084,1722250161449,-559.65,0.00013698,2]
[333565085,1722250161471,-500.0,0.00013698,2]
[333565086,1722250161494,-500.0,0.00013698,2]
[333565087,1722250161516,-500.0,0.00013698,2]
[333565088,1722250161537,-500.0,0.00013698,2]
[333565089,1722250161559,-500.0,0.00013698,2]
[333565090,1722250161580,-500.0,0.00013698,2]
[333565091,1722250161601,-500.0,0.00013698,2]
[333565092,1722250161623,-626.03,0.00013698,2]
[333565093,1722250161648,-500.0,0.00013698,2]
[333565094,1722250161670,-167.07776771,0.00013698,2]
[333565095,1722250161691,-500.0,0.00013698,2]
[333565096,1722250161711,-245.81592688,0.00013698,2]
[333565097,1722250161732,-207.6382969,0.00013698,2]
[333565098,1722250161752,-503.27921189,0.00013698,2]
[333565099,1722250161775,-500.0,0.00013698,2]
[333565100,1722250161798,-951.13,0.00013698,2]
[333565101,1722250161818,-500.0,0.00013698,2]
[333565102,1722250161844,-693.86,0.00013698,2]
[333565103,1722250161865,-500.0,0.00013698,2]
[333565104,1722250161888,-698.95,0.00013698,2]
[333565105,1722250161908,-320.632392,0.00013699,2]
[333565106,1722250161932,-150.112233,0.000137,2]
[333565107,1722250163277,502.71358584,0.00013698,2]
[333565108,1722250166955,500.0,0.00013698,2]
[333565110,1722250173716,271.83180165,0.00013698,2]
[333565111,1722250196988,165.42397432,0.0001212,2]
[333565112,1722250202548,318.00438468,0.0001212,2]
[333565150,1722250233552,-0.64822922,0.00013698,2]
[333565151,1722250233564,-3269.81996913,0.00013698,2]
[333565152,1722250233574,-500.0,0.00013698,2]
[333565153,1722250233583,-500.0,0.00013698,2]
[333565154,1722250233593,-500.0,0.00013698,2]
[333565156,1722250233602,-500.0,0.00013698,2]
[333565157,1722250233612,-506.21356583,0.00013698,2]
[333565158,1722250233622,-500.0,0.00013698,2]
[333565159,1722250233631,-500.0,0.00013972,2]
[333565161,1722250233640,-408.22356519,0.00013972,2]
[333565163,1722250233650,-500.0,0.00013972,2]
[333565165,1722250233660,-209.6995442,0.00013972,2]
[333565670,1722250239325,-290.3004558,0.00013972,2]
[333565671,1722250239336,-500.0,0.00013972,2]
[333565672,1722250239346,-500.0,0.00013972,2]
[333565673,1722250239357,-500.0,0.00013972,2]
[333565674,1722250239368,-951.13,0.00013972,2]